[Event "European Online Club-ch-C 2021"]
[Site "Online"]
[Date "2021.03.27"]
[Round "7.6"]
[White "Plat, Vojtech"]
[Black "Grigorian, Spartak"]
[Result "1-0"]
[ECO "E60"]
[WhiteElo "2552"]
[BlackElo "2458"]
[Annotator "ChessBase"]
[PlyCount "107"]
[EventDate "2021.03.27"]
[EventType "team-tourn"]
[EventCountry "NET"]
[SourceTitle "playchess.com"]
[Source "ChessBase"]
[SourceQuality "1"]
[TimeControl "900+5"]

1. d4 {[%emt 0:00:00]} Nf6 {[%emt 0:00:04]} 2. Nf3 {[%emt 0:00:22]} g6 {[%emt 0:00:06]} 3. e3 {[%emt 0:00:12]} Bg7 {[%emt 0:00:06]} 4. c4 {[%emt 0:00:06]} O-O {[%emt 0:00:23]} 5. Nbd2 {[%emt 0:00:12]} b6 {[%emt 0:00:11]} 6. Bd3 {[%emt 0:00:04]} Bb7 {[%emt 0:00:03]} 7. O-O {[%emt 0:00:02]} e6 {[%emt 0:00:15]} 8. b3 {[%emt 0:00:04]} c5 {[%emt 0:00:08]} 9. Bb2 {[%emt 0:00:03]} Nc6 {[%emt 0:00:27]} 10. Rc1 {[%emt 0:00:15]} Qe7 {[%emt 0:00:12]} 11. Bb1 {[%emt 0:00:08]} Rac8 {[%emt 0:00:33]} 12. Re1 {[%emt 0:00:05]} cxd4 {[%emt 0:00:57]} 13. exd4 {[%emt 0:00:03]} d5 {[%emt 0:00:03]} 14. a3 {[%emt 0:00:23]} Rfd8 {[%emt 0:00:05]} 15. c5 {[%emt 0:00:03]} bxc5 {[%emt 0:01:04]} 16. dxc5 {[%emt 0:01:18]} a5 {[%emt 0:00:03]} 17. Qe2 {[%emt 0:00:12]} Ra8 {[%emt 0:00:34]} 18. Qb5 {[%emt 0:00:32]} Qc7 {[%emt 0:00:36]} 19. Ne5 {[%emt 0:00:58]} Nd7 {[%emt 0:00:48]} 20. f4 {[%emt 0:02:24]} Ncxe5 {[%emt 0:01:33]} 21. fxe5 {[%emt 0:00:03]} Ba6 {[%emt 0:02:16]} 22. Qa4 {[%emt 0:00:03]} Nxe5 {[%emt 0:00:07]} 23. Bd4 {[%emt 0:00:32]} Rdb8 {[%emt 0:00:26]} 24. Bf2 {[%emt 0:00:33]} Nc6 {[%emt 0:02:30]} 25. Nf3 {[%emt 0:00:39]} e5 {[%emt 0:00:06]} 26. Bg3 {[%emt 0:00:22]} Bb5 {[%emt 0:00:19]} 27. Qh4 {[%emt 0:00:10]} f6 {[%emt 0:00:29]} 28. Red1 {[%emt 0:00:39]} Rd8 {[%emt 0:00:03]} 29. Ba2 {[%emt 0:00:54]} Qf7 {[%emt 0:00:11]} 30. Rd2 {[%emt 0:00:25]} e4 {[%emt 0:01:27]} 31. Ne1 {[%emt 0:00:32]} g5 {[%emt 0:00:55]} 32. Qg4 {[%emt 0:00:06]} h5 {[%emt 0:00:20]} 33. Qd1 {[%emt 0:00:02]} Ne5 {[%emt 0:00:13]} 34. b4 {[%emt 0:00:13]} Nd3 {[%emt 0:00:05]} 35. Nxd3 {[%emt 0:00:04]} Bxd3 {[%emt 0:00:03]} 36. c6 {[%emt 0:00:07]} f5 {[%emt 0:00:05]} 37. c7 {[%emt 0:00:07]} f4 {[%emt 0:00:03]} 38. cxd8=Q+ {[%emt 0:00:05]} Rxd8 {[%emt 0:00:00]} 39. Bf2 {[%emt 0:00:04]} Qf5 {[%emt 0:00:12]} 40. Rc5 {[%emt 0:00:06]} axb4 {[%emt 0:00:09]} 41. axb4 {[%emt 0:00:03]} Bf8 {[%emt 0:00:03]} 42. Rc3 {[%emt 0:00:27]} Bxb4 {[%emt 0:00:05]} 43. Rcxd3 {[%emt 0:00:02]} Bxd2 {[%emt 0:00:06]} 44. Rxd2 {[%emt 0:00:08]} e3 {[%emt 0:00:03]} 45. Rxd5 {[%emt 0:00:08]} exf2+ {[%emt 0:00:02]} 46. Kxf2 {[%emt 0:00:03]} Rxd5 {[%emt 0:00:02]} 47. Qxd5+ {[%emt 0:00:05]} Qxd5 {[%emt 0:00:02]} 48. Bxd5+ {[%emt 0:00:02]} Kg7 {[%emt 0:00:00]} 49. Kf3 {[%emt 0:00:03]} Kf6 {[%emt 0:00:04]} 50. Ke4 {[%emt 0:00:05]} Kg6 {[%emt 0:00:08]} 51. Ke5 {[%emt 0:00:04]} Kh6 {[%emt 0:00:03]} 52. Kf5 {[%emt 0:00:06]} g4 {[%emt 0:00:13]} 53. Kxf4 {[%emt 0:00:06]} Kg6 {[%emt 0:00:01]} 54. Be6 {[%emt 0:00:02]} 1-0

[Event "European Online Club-ch-C 2021"]
[Site "Online"]
[Date "2021.03.27"]
[Round "7.7"]
[White "Reuker, Jari"]
[Black "Krejci, Jan"]
[Result "0-1"]
[ECO "C92"]
[WhiteElo "2423"]
[BlackElo "2540"]
[Annotator "ChessBase"]
[PlyCount "98"]
[EventDate "2021.03.27"]
[EventType "team-tourn"]
[EventCountry "NET"]
[SourceTitle "playchess.com"]
[Source "ChessBase"]
[SourceQuality "1"]
[TimeControl "900+5"]

1. e4 {[%emt 0:00:00]} e5 {[%emt 0:00:03]} 2. Nf3 {[%emt 0:00:06]} Nc6 {[%emt 0:00:01]} 3. Bb5 {[%emt 0:00:00]} a6 {[%emt 0:00:02]} 4. Ba4 {[%emt 0:00:02]} Nf6 {[%emt 0:00:01]} 5. O-O {[%emt 0:00:03]} Be7 {[%emt 0:00:01]} 6. Re1 {[%emt 0:00:01]} b5 {[%emt 0:00:02]} 7. Bb3 {[%emt 0:00:02]} d6 {[%emt 0:00:01]} 8. c3 {[%emt 0:00:01]} O-O {[%emt 0:00:02]} 9. h3 {[%emt 0:00:02]} Bb7 {[%emt 0:00:01]} 10. d4 {[%emt 0:00:32]} Nd7 {[%emt 0:00:03]} 11. Nbd2 {[%emt 0:01:45]} exd4 {[%emt 0:00:04]} 12. cxd4 {[%emt 0:00:04]} Bf6 {[%emt 0:00:02]} 13. Nf1 {[%emt 0:00:29]} Na5 {[%emt 0:00:03]} 14. Bc2 {[%emt 0:00:06]} Re8 {[%emt 0:00:01]} 15. Ng3 {[%emt 0:01:15]} g6 {[%emt 0:00:06]} 16. Bf4 {[%emt 0:01:24]} Nf8 {[%emt 0:00:21]} 17. b3 {[%emt 0:01:29]} Ne6 {[%emt 0:00:52]} 18. Be3 {[%emt 0:00:04]} c5 {[%emt 0:00:02]} 19. d5 {[%emt 0:01:05]} Bxa1 {[%emt 0:00:06]} 20. Qxa1 {[%emt 0:00:02]} Ng7 {[%emt 0:00:35]} 21. Bg5 {[%emt 0:00:09]} f6 {[%emt 0:00:28]} 22. Bxf6 {[%emt 0:00:02]} Qd7 {[%emt 0:00:02]} 23. Nh2 {[%emt 0:01:05]} Rf8 {[%emt 0:00:49]} 24. Rf1 {[%emt 0:02:21]} Rae8 {[%emt 0:00:17]} 25. Bg5 {[%emt 0:00:33]} h5 {[%emt 0:00:35]} 26. Bd2 {[%emt 0:00:20]} b4 {[%emt 0:00:04]} 27. f4 {[%emt 0:00:23]} Bc8 {[%emt 0:00:18]} 28. Nf3 {[%emt 0:00:22]} Nb7 {[%emt 0:00:28]} 29. Bd3 {[%emt 0:00:09]} Qe7 {[%emt 0:01:10]} 30. e5 {[%emt 0:00:47]} Bf5 {[%emt 0:01:16]} 31. Bc4 {[%emt 0:00:44]} h4 {[%emt 0:00:21]} 32. Nh1 {[%emt 0:00:27]} Na5 {[%emt 0:00:25]} 33. Qc1 {[%emt 0:01:25]} Nxc4 {[%emt 0:00:40]} 34. Qxc4 {[%emt 0:00:00]} Nh5 {[%emt 0:00:03]} 35. Be1 {[%emt 0:00:16]} Bd7 {[%emt 0:00:28]} 36. Bxh4 {[%emt 0:00:20]} Qg7 {[%emt 0:00:02]} 37. Bg5 {[%emt 0:00:02]} Bb5 {[%emt 0:00:04]} 38. Qc1 {[%emt 0:00:05]} Bxf1 {[%emt 0:00:05]} 39. Qxf1 {[%emt 0:00:03]} Nxf4 {[%emt 0:00:09]} 40. e6 {[%emt 0:00:04]} Nxd5 {[%emt 0:00:07]} 41. Qc4 {[%emt 0:00:04]} Rxf3 {[%emt 0:00:37]} 42. gxf3 {[%emt 0:00:06]} Qd4+ {[%emt 0:00:14]} 43. Nf2 {[%emt 0:00:03]} Qxc4 {[%emt 0:00:19]} 44. bxc4 {[%emt 0:00:00]} Nb6 {[%emt 0:00:02]} 45. e7 {[%emt 0:00:04]} Nxc4 {[%emt 0:00:11]} 46. Ne4 {[%emt 0:00:17]} Kf7 {[%emt 0:00:02]} 47. Kf2 {[%emt 0:00:02]} Ke6 {[%emt 0:00:22]} 48. Ke2 {[%emt 0:00:05]} Nb6 {[%emt 0:00:15]} 49. Kd3 {[%emt 0:00:10]} Nd5 {[%emt 0:00:11]} 0-1

[Event "European Online Club-ch-C 2021"]
[Site "Online"]
[Date "2021.03.27"]
[Round "7.8"]
[White "Hracek, Zbynek"]
[Black "Schulze, Lara"]
[Result "1/2-1/2"]
[ECO "E13"]
[WhiteElo "2565"]
[BlackElo "2269"]
[Annotator "ChessBase"]
[PlyCount "68"]
[EventDate "2021.03.27"]
[EventType "team-tourn"]
[EventCountry "NET"]
[SourceTitle "playchess.com"]
[Source "ChessBase"]
[SourceQuality "1"]
[TimeControl "900+5"]

1. d4 {[%emt 0:00:00]} Nf6 {[%emt 0:00:04]} 2. c4 {[%emt 0:00:02]} e6 {[%emt 0:00:02]} 3. Nc3 {[%emt 0:00:01]} Bb4 {[%emt 0:00:03]} 4. Nf3 {[%emt 0:00:02]} b6 {[%emt 0:00:04]} 5. Bg5 {[%emt 0:00:06]} Bb7 {[%emt 0:00:10]} 6. Nd2 {[%emt 0:00:05]} h6 {[%emt 0:00:51]} 7. Bh4 {[%emt 0:00:03]} e5 {[%emt 0:00:27]} 8. dxe5 {[%emt 0:00:48]} g5 {[%emt 0:00:35]} 9. Bg3 {[%emt 0:00:29]} Bxc3 {[%emt 0:00:27]} 10. bxc3 {[%emt 0:00:01]} Nh5 {[%emt 0:00:04]} 11. e3 {[%emt 0:00:09]} Nxg3 {[%emt 0:00:03]} 12. hxg3 {[%emt 0:00:00]} Qe7 {[%emt 0:00:19]} 13. Nf3 {[%emt 0:00:32]} Nc6 {[%emt 0:00:55]} 14. Be2 {[%emt 0:00:02]} O-O-O {[%emt 0:00:23]} 15. a4 {[%emt 0:00:15]} a5 {[%emt 0:00:14]} 16. Rb1 {[%emt 0:00:12]} Nxe5 {[%emt 0:00:10]} 17. O-O {[%emt 0:00:44]} h5 {[%emt 0:00:28]} 18. Nxe5 {[%emt 0:00:57]} Qxe5 {[%emt 0:00:04]} 19. Rb5 {[%emt 0:00:15]} Qe4 {[%emt 0:00:54]} 20. Bf3 {[%emt 0:00:05]} Qxc4 {[%emt 0:00:07]} 21. Bxb7+ {[%emt 0:00:23]} Kxb7 {[%emt 0:00:03]} 22. Rxg5 {[%emt 0:00:00]} h4 {[%emt 0:00:59]} 23. Rg4 {[%emt 0:00:27]} Qxc3 {[%emt 0:00:24]} 24. gxh4 {[%emt 0:00:02]} Qc6 {[%emt 0:00:43]} 25. g3 {[%emt 0:01:26]} Rdg8 {[%emt 0:00:40]} 26. Rxg8 {[%emt 0:00:22]} Rxg8 {[%emt 0:00:02]} 27. Qd4 {[%emt 0:00:00]} Qf3 {[%emt 0:03:06]} 28. Qxd7 {[%emt 0:00:35]} f5 {[%emt 0:00:30]} 29. Qd1 {[%emt 0:04:14]} Rxg3+ {[%emt 0:02:31]} 30. fxg3 {[%emt 0:00:00]} Qxg3+ {[%emt 0:00:02]} 31. Kh1 {[%emt 0:00:01]} Qh3+ {[%emt 0:00:03]} 32. Kg1 {[%emt 0:00:00]} Qg3+ {[%emt 0:00:02]} 33. Kh1 {[%emt 0:00:01]} Qh3+ {[%emt 0:00:02]} 34. Kg1 {[%emt 0:00:01]} Qg3+ {[%emt 0:00:02]} 1/2-1/2

[Event "European Online Club-ch-C 2021"]
[Site "Online"]
[Date "2021.03.27"]
[Round "7.9"]
[White "Markoja, Boris"]
[Black "Bluebaum, Matthias"]
[Result "0-1"]
[ECO "E04"]
[WhiteElo "2439"]
[BlackElo "2670"]
[Annotator "ChessBase"]
[PlyCount "58"]
[EventDate "2021.03.27"]
[EventType "team-tourn"]
[EventCountry "NET"]
[SourceTitle "playchess.com"]
[Source "ChessBase"]
[SourceQuality "1"]
[TimeControl "900+5"]

1. d4 {[%emt 0:00:00]} d5 {[%emt 0:00:03]} 2. c4 {[%emt 0:00:03]} e6 {[%emt 0:00:02]} 3. Nf3 {[%emt 0:00:02]} Nf6 {[%emt 0:00:03]} 4. g3 {[%emt 0:00:02]} Bb4+ {[%emt 0:00:03]} 5. Nbd2 {[%emt 0:00:02]} dxc4 {[%emt 0:00:07]} 6. Bg2 {[%emt 0:00:02]} b5 {[%emt 0:00:01]} 7. O-O {[%emt 0:01:06]} a5 {[%emt 0:00:02]} 8. a4 {[%emt 0:03:00]} c6 {[%emt 0:00:07]} 9. Qc2 {[%emt 0:00:15]} O-O {[%emt 0:00:33]} 10. b3 {[%emt 0:00:36]} cxb3 {[%emt 0:00:09]} 11. Nxb3 {[%emt 0:00:05]} bxa4 {[%emt 0:00:14]} 12. Nc5 {[%emt 0:00:30]} Nbd7 {[%emt 0:00:42]} 13. Nxa4 {[%emt 0:00:12]} Ba6 {[%emt 0:00:24]} 14. Rd1 {[%emt 0:00:09]} Qe7 {[%emt 0:00:37]} 15. e4 {[%emt 0:01:36]} h6 {[%emt 0:00:56]} 16. h3 {[%emt 0:00:10]} c5 {[%emt 0:01:12]} 17. d5 {[%emt 0:00:31]} exd5 {[%emt 0:00:11]} 18. exd5 {[%emt 0:00:47]} Be2 {[%emt 0:00:18]} 19. Be3 {[%emt 0:00:37]} Bxd1 {[%emt 0:00:07]} 20. Rxd1 {[%emt 0:00:02]} Rad8 {[%emt 0:00:19]} 21. Nd2 {[%emt 0:00:18]} Ne5 {[%emt 0:00:46]} 22. Nc4 {[%emt 0:00:14]} Nxc4 {[%emt 0:00:04]} 23. Qxc4 {[%emt 0:00:02]} Rfe8 {[%emt 0:00:20]} 24. Bf3 {[%emt 0:03:28]} Qd7 {[%emt 0:00:24]} 25. Nxc5 {[%emt 0:00:10]} Qc7 {[%emt 0:00:43]} 26. Bd4 {[%emt 0:00:42]} Ne4 {[%emt 0:00:15]} 27. Rc1 {[%emt 0:01:35]} Nxc5 {[%emt 0:00:17]} 28. Bxc5 {[%emt 0:00:06]} Bxc5 {[%emt 0:00:02]} 29. Qxc5 {[%emt 0:00:03]} Re1+ {[%emt 0:00:03]} 0-1

[Event "European Online Club-ch-C 2021"]
[Site "Online"]
[Date "2021.03.27"]
[Round "7.10"]
[White "Heimann, Andreas"]
[Black "Subelj, Jan"]
[Result "1/2-1/2"]
[ECO "E14"]
[WhiteElo "2606"]
[BlackElo "2418"]
[Annotator "ChessBase"]
[PlyCount "146"]
[EventDate "2021.03.27"]
[EventType "team-tourn"]
[EventCountry "NET"]
[SourceTitle "playchess.com"]
[Source "ChessBase"]
[SourceQuality "1"]
[TimeControl "900+5"]

1. d4 {[%emt 0:00:00]} Nf6 {[%emt 0:00:05]} 2. c4 {[%emt 0:00:03]} e6 {[%emt 0:00:02]} 3. Nf3 {[%emt 0:00:03]} Bb4+ {[%emt 0:00:05]} 4. Nbd2 {[%emt 0:00:04]} b6 {[%emt 0:00:08]} 5. a3 {[%emt 0:00:03]} Bxd2+ {[%emt 0:00:03]} 6. Qxd2 {[%emt 0:00:00]} a5 {[%emt 0:00:30]} 7. b3 {[%emt 0:00:04]} Bb7 {[%emt 0:00:02]} 8. e3 {[%emt 0:00:01]} d6 {[%emt 0:00:09]} 9. Be2 {[%emt 0:00:04]} Nbd7 {[%emt 0:00:04]} 10. O-O {[%emt 0:00:08]} O-O {[%emt 0:00:12]} 11. Bb2 {[%emt 0:00:02]} Ne4 {[%emt 0:00:06]} 12. Qc2 {[%emt 0:00:02]} f5 {[%emt 0:00:06]} 13. d5 {[%emt 0:00:02]} e5 {[%emt 0:00:06]} 14. Nd2 {[%emt 0:00:06]} Nxd2 {[%emt 0:00:53]} 15. Qxd2 {[%emt 0:00:01]} Qh4 {[%emt 0:00:31]} 16. f4 {[%emt 0:00:34]} Rae8 {[%emt 0:00:06]} 17. Bd3 {[%emt 0:00:07]} Bc8 {[%emt 0:01:16]} 18. b4 {[%emt 0:00:42]} Rf6 {[%emt 0:03:25]} 19. Rf3 {[%emt 0:00:16]} Rf7 {[%emt 0:01:15]} 20. Raf1 {[%emt 0:00:37]} axb4 {[%emt 0:01:57]} 21. axb4 {[%emt 0:00:04]} Qe7 {[%emt 0:00:03]} 22. Bc2 {[%emt 0:01:44]} exf4 {[%emt 0:00:59]} 23. exf4 {[%emt 0:00:05]} Nf6 {[%emt 0:00:04]} 24. Qd4 {[%emt 0:00:42]} Bd7 {[%emt 0:01:03]} 25. Bc3 {[%emt 0:00:21]} Qf8 {[%emt 0:02:07]} 26. Re1 {[%emt 0:01:34]} Rfe7 {[%emt 0:00:03]} 27. Rfe3 {[%emt 0:01:40]} Rxe3 {[%emt 0:00:04]} 28. Rxe3 {[%emt 0:00:00]} Rxe3 {[%emt 0:00:02]} 29. Qxe3 {[%emt 0:00:00]} Qe8 {[%emt 0:00:31]} 30. Qxe8+ {[%emt 0:00:14]} Nxe8 {[%emt 0:00:03]} 31. Kf2 {[%emt 0:00:02]} Kf7 {[%emt 0:00:07]} 32. Ke3 {[%emt 0:00:07]} Nf6 {[%emt 0:00:08]} 33. Kd4 {[%emt 0:00:02]} Ne4 {[%emt 0:00:25]} 34. Be1 {[%emt 0:00:08]} g6 {[%emt 0:00:24]} 35. g4 {[%emt 0:00:36]} Nf6 {[%emt 0:00:21]} 36. g5 {[%emt 0:00:03]} Ne4 {[%emt 0:00:06]} 37. h4 {[%emt 0:00:03]} Ke8 {[%emt 0:00:04]} 38. Bd1 {[%emt 0:00:03]} Kf7 {[%emt 0:00:03]} 39. h5 {[%emt 0:00:02]} Kg8 {[%emt 0:00:03]} 40. h6 {[%emt 0:00:05]} Kf7 {[%emt 0:00:01]} 41. Bb3 {[%emt 0:00:43]} Ke7 {[%emt 0:00:07]} 42. Bc3 {[%emt 0:00:20]} Nxc3 {[%emt 0:00:14]} 43. Kxc3 {[%emt 0:00:00]} Kf7 {[%emt 0:00:02]} 44. Kb2 {[%emt 0:00:31]} Ke7 {[%emt 0:00:03]} 45. Ka3 {[%emt 0:00:01]} Bc8 {[%emt 0:00:20]} 46. Ba4 {[%emt 0:00:10]} Ba6 {[%emt 0:00:02]} 47. Kb3 {[%emt 0:00:02]} Kd8 {[%emt 0:00:07]} 48. Bc6 {[%emt 0:00:05]} Ke7 {[%emt 0:00:01]} 49. Kc3 {[%emt 0:00:04]} Kd8 {[%emt 0:00:06]} 50. Kd4 {[%emt 0:00:21]} Ke7 {[%emt 0:00:02]} 51. Ba4 {[%emt 0:00:01]} Kd8 {[%emt 0:00:08]} 52. Bc2 {[%emt 0:00:32]} Bc8 {[%emt 0:00:02]} 53. c5 {[%emt 0:00:04]} Ke7 {[%emt 0:00:03]} 54. Bd3 {[%emt 0:00:21]} Kf7 {[%emt 0:00:08]} 55. Be2 {[%emt 0:01:09]} Ke7 {[%emt 0:00:05]} 56. Bb5 {[%emt 0:00:21]} Kf7 {[%emt 0:00:05]} 57. Bc6 {[%emt 0:00:09]} Ke7 {[%emt 0:00:02]} 58. Bb5 {[%emt 0:01:39]} Kf7 {[%emt 0:00:04]} 59. Be2 {[%emt 0:00:20]} Bd7 {[%emt 0:00:14]} 60. Ba6 {[%emt 0:00:25]} Ba4 {[%emt 0:00:15]} 61. cxb6 {[%emt 0:00:12]} cxb6 {[%emt 0:00:02]} 62. Kc4 {[%emt 0:00:01]} Ke7 {[%emt 0:00:05]} 63. Bc8 {[%emt 0:00:13]} b5+ {[%emt 0:00:04]} 64. Kc3 {[%emt 0:00:01]} Kf7 {[%emt 0:00:01]} 65. Bd7 {[%emt 0:00:25]} Kf8 {[%emt 0:00:03]} 66. Be6 {[%emt 0:00:07]} Bd1 {[%emt 0:00:03]} 67. Bd7 {[%emt 0:00:20]} Be2 {[%emt 0:00:02]} 68. Kd2 {[%emt 0:00:03]} Bc4 {[%emt 0:00:02]} 69. Ke3 {[%emt 0:00:05]} Kf7 {[%emt 0:00:04]} 70. Kd4 {[%emt 0:00:06]} Kf8 {[%emt 0:00:03]} 71. Be6 {[%emt 0:00:02]} Bf1 {[%emt 0:00:02]} 72. Kc3 {[%emt 0:00:01]} Be2 {[%emt 0:00:02]} 73. Kd2 {[%emt 0:00:02]} Bf1 {[%emt 0:00:01]} 1/2-1/2

[Event "European Online Club-ch-C 2021"]
[Site "Online"]
[Date "2021.03.27"]
[Round "7.11"]
[White "Skuhala, Jernej"]
[Black "Keymer, Vincent"]
[Result "0-1"]
[ECO "B92"]
[WhiteElo "2351"]
[BlackElo "2591"]
[Annotator "ChessBase"]
[PlyCount "95"]
[EventDate "2021.03.27"]
[EventType "team-tourn"]
[EventCountry "NET"]
[SourceTitle "playchess.com"]
[Source "ChessBase"]
[SourceQuality "1"]
[TimeControl "900+5"]

1. e4 {[%emt 0:00:00]} c5 {[%emt 0:00:02]} 2. Nf3 {[%emt 0:00:04]} d6 {[%emt 0:00:01]} 3. d4 {[%emt 0:00:01]} cxd4 {[%emt 0:00:00]} 4. Nxd4 {[%emt 0:00:02]} Nf6 {[%emt 0:00:02]} 5. Nc3 {[%emt 0:00:01]} a6 {[%emt 0:00:01]} 6. Be3 {[%emt 0:00:01]} e5 {[%emt 0:00:02]} 7. Nb3 {[%emt 0:00:02]} Be7 {[%emt 0:00:01]} 8. Be2 {[%emt 0:00:24]} Be6 {[%emt 0:00:10]} 9. Bf3 {[%emt 0:00:09]} O-O {[%emt 0:00:41]} 10. O-O {[%emt 0:00:02]} Qc7 {[%emt 0:00:21]} 11. a4 {[%emt 0:00:15]} Rc8 {[%emt 0:00:17]} 12. Qd2 {[%emt 0:00:24]} Nbd7 {[%emt 0:00:29]} 13. a5 {[%emt 0:00:04]} b5 {[%emt 0:00:24]} 14. axb6 {[%emt 0:01:21]} Nxb6 {[%emt 0:00:03]} 15. Na5 {[%emt 0:00:02]} Rab8 {[%emt 0:02:15]} 16. Be2 {[%emt 0:01:08]} Nc4 {[%emt 0:00:50]} 17. Nxc4 {[%emt 0:01:18]} Bxc4 {[%emt 0:00:04]} 18. Bxc4 {[%emt 0:00:01]} Qxc4 {[%emt 0:00:17]} 19. Ra4 {[%emt 0:00:03]} Qc6 {[%emt 0:00:42]} 20. Qd3 {[%emt 0:01:29]} Rxb2 {[%emt 0:00:42]} 21. Bd2 {[%emt 0:00:07]} h6 {[%emt 0:01:08]} 22. Rxa6 {[%emt 0:00:33]} Qc4 {[%emt 0:00:06]} 23. Ra8 {[%emt 0:00:38]} Kh7 {[%emt 0:01:11]} 24. Rxc8 {[%emt 0:00:38]} Qxc8 {[%emt 0:00:00]} 25. h3 {[%emt 0:00:28]} Rb4 {[%emt 0:01:09]} 26. Be3 {[%emt 0:03:49]} Qc4 {[%emt 0:01:55]} 27. f3 {[%emt 0:02:33]} Qxd3 {[%emt 0:00:12]} 28. cxd3 {[%emt 0:00:01]} Rb3 {[%emt 0:00:00]} 29. Rc1 {[%emt 0:00:05]} Bd8 {[%emt 0:00:29]} 30. Ne2 {[%emt 0:01:36]} Rxd3 {[%emt 0:00:12]} 31. Bf2 {[%emt 0:00:01]} g6 {[%emt 0:00:52]} 32. Nc3 {[%emt 0:00:10]} Ba5 {[%emt 0:00:14]} 33. Ne2 {[%emt 0:00:01]} Kg7 {[%emt 0:00:17]} 34. Ra1 {[%emt 0:00:05]} Bb4 {[%emt 0:00:19]} 35. Rc1 {[%emt 0:00:05]} d5 {[%emt 0:00:19]} 36. exd5 {[%emt 0:00:06]} Nxd5 {[%emt 0:00:00]} 37. Rc4 {[%emt 0:00:08]} Rd1+ {[%emt 0:00:06]} 38. Kh2 {[%emt 0:00:02]} Rd2 {[%emt 0:00:07]} 39. Be1 {[%emt 0:00:03]} Rxe2 {[%emt 0:00:03]} 40. Bxb4 {[%emt 0:00:01]} Rxg2+ {[%emt 0:00:08]} 41. Kxg2 {[%emt 0:00:04]} Ne3+ {[%emt 0:00:02]} 42. Kf2 {[%emt 0:00:02]} Nxc4 {[%emt 0:00:00]} 43. Bc3 {[%emt 0:00:00]} g5 {[%emt 0:00:11]} 44. Ke2 {[%emt 0:00:02]} Kf6 {[%emt 0:00:02]} 45. Kd3 {[%emt 0:00:01]} Nd6 {[%emt 0:00:02]} 46. Bb4 {[%emt 0:00:01]} Ke6 {[%emt 0:00:10]} 47. Ba3 {[%emt 0:00:12]} f6 {[%emt 0:00:05]} 48. Ke3 {[%emt 0:00:01]} 0-1

[Event "European Online Club-ch-C 2021"]
[Site "Online"]
[Date "2021.03.27"]
[Round "7.12"]
[White "Kollars, Dmitrij"]
[Black "Marn, Jan"]
[Result "1-0"]
[ECO "C97"]
[WhiteElo "2598"]
[BlackElo "2346"]
[Annotator "ChessBase"]
[PlyCount "91"]
[EventDate "2021.03.27"]
[EventType "team-tourn"]
[EventCountry "NET"]
[SourceTitle "playchess.com"]
[Source "ChessBase"]
[SourceQuality "1"]
[TimeControl "900+5"]

1. e4 {[%emt 0:00:00]} e5 {[%emt 0:00:02]} 2. Nf3 {[%emt 0:00:02]} Nc6 {[%emt 0:00:02]} 3. Bb5 {[%emt 0:00:04]} a6 {[%emt 0:00:02]} 4. Ba4 {[%emt 0:00:02]} Nf6 {[%emt 0:00:08]} 5. O-O {[%emt 0:00:03]} Be7 {[%emt 0:00:01]} 6. Re1 {[%emt 0:00:01]} b5 {[%emt 0:00:03]} 7. Bb3 {[%emt 0:00:01]} d6 {[%emt 0:00:01]} 8. c3 {[%emt 0:00:02]} O-O {[%emt 0:00:01]} 9. h3 {[%emt 0:00:02]} Na5 {[%emt 0:00:02]} 10. Bc2 {[%emt 0:00:01]} c5 {[%emt 0:00:01]} 11. d4 {[%emt 0:00:01]} Qc7 {[%emt 0:00:02]} 12. d5 {[%emt 0:00:02]} c4 {[%emt 0:00:46]} 13. b4 {[%emt 0:00:16]} cxb3 {[%emt 0:00:21]} 14. axb3 {[%emt 0:00:00]} Nb7 {[%emt 0:00:02]} 15. b4 {[%emt 0:01:37]} Bd7 {[%emt 0:00:26]} 16. Bd3 {[%emt 0:00:24]} a5 {[%emt 0:01:11]} 17. Bd2 {[%emt 0:00:18]} axb4 {[%emt 0:00:20]} 18. Rxa8 {[%emt 0:00:00]} Rxa8 {[%emt 0:00:02]} 19. cxb4 {[%emt 0:00:02]} Bd8 {[%emt 0:00:10]} 20. Nc3 {[%emt 0:00:53]} Qb6 {[%emt 0:03:29]} 21. Qe2 {[%emt 0:02:31]} Ra3 {[%emt 0:01:21]} 22. Rb1 {[%emt 0:01:21]} g6 {[%emt 0:04:29]} 23. Ne1 {[%emt 0:00:31]} Nh5 {[%emt 0:00:37]} 24. Nc2 {[%emt 0:01:08]} Nf4 {[%emt 0:00:02]} 25. Qf1 {[%emt 0:00:45]} Ra8 {[%emt 0:00:16]} 26. Bxb5 {[%emt 0:01:11]} Bxb5 {[%emt 0:00:12]} 27. Qxb5 {[%emt 0:00:04]} Qxb5 {[%emt 0:00:03]} 28. Nxb5 {[%emt 0:00:00]} Ra2 {[%emt 0:00:03]} 29. Bxf4 {[%emt 0:01:39]} exf4 {[%emt 0:00:51]} 30. Nba3 {[%emt 0:00:27]} Bf6 {[%emt 0:00:34]} 31. Rb3 {[%emt 0:00:02]} g5 {[%emt 0:00:09]} 32. Kf1 {[%emt 0:00:07]} Bb2 {[%emt 0:00:21]} 33. Nb5 {[%emt 0:00:53]} Kg7 {[%emt 0:00:49]} 34. Ke2 {[%emt 0:00:21]} Kf6 {[%emt 0:00:16]} 35. Kd3 {[%emt 0:00:11]} h5 {[%emt 0:00:07]} 36. f3 {[%emt 0:00:21]} Ke5 {[%emt 0:00:17]} 37. Nba3 {[%emt 0:01:19]} Kf6 {[%emt 0:00:10]} 38. Nc4 {[%emt 0:00:11]} Be5 {[%emt 0:00:09]} 39. Ra3 {[%emt 0:00:15]} Rxa3+ {[%emt 0:00:08]} 40. N2xa3 {[%emt 0:00:00]} g4 {[%emt 0:00:04]} 41. hxg4 {[%emt 0:00:03]} hxg4 {[%emt 0:00:01]} 42. Na5 {[%emt 0:00:15]} Bb2 {[%emt 0:00:14]} 43. N3c4 {[%emt 0:00:07]} gxf3 {[%emt 0:00:01]} 44. gxf3 {[%emt 0:00:02]} Nxa5 {[%emt 0:00:02]} 45. bxa5 {[%emt 0:00:00]} Bc1 {[%emt 0:00:04]} 46. a6 {[%emt 0:00:02]} 1-0